bitfinex-derivatives/quotes_ETHF0:USTF0_20240928
["timestamp","ask_amount","ask_price","bid_price","bid_amount"]
[1727485265910,0.401,2697.7,2697.6,2.20209622]
[1727485266209,2.11159,2697.7,2697.6,2.20151353]
[1727485266414,2.11159,2697.7,2697.6,0.96989523]
[1727485268306,1.741,2697.7,2697.6,2.68835997]
[1727485268502,0.401,2697.7,2697.6,2.57361436]
[1727485268715,0.401,2697.7,2697.6,1.23240904]
[1727485268915,0.401,2697.7,2697.6,2.20302131]
[1727485269113,0.401,2697.7,2697.6,3.05905472]
[1727485269411,0.4061,2698.0,2697.6,3.05905472]
[1727485269412,4.9539,2698.0,2697.6,3.05905472]
[1727485269612,0.3686,2697.8,2697.7,2.20313448]
[1727485269818,0.3686,2697.8,2697.7,0.97060892]
[1727485270113,0.73917,2697.8,2697.7,0.97060892]
[1727485270618,2.07917,2697.8,2697.7,0.97060892]
[1727485271308,1.7086,2697.8,2697.7,0.97060892]
[1727485271511,2.07917,2697.8,2697.7,0.97060892]
[1727485271813,1.7086,2697.8,2697.7,0.97060892]
[1727485273305,2.07917,2697.8,2697.7,0.97060892]
[1727485273718,1.7086,2697.8,2697.7,0.97060892]
[1727485275320,1.7086,2697.8,2697.7,2.20338736]
[1727485275518,1.7086,2697.8,2697.7,0.97060892]
[1727485275718,1.7086,2697.8,2697.7,2.20341188]
[1727485275917,1.7086,2697.8,2697.7,0.97060892]
[1727485276721,1.7086,2697.8,2697.7,2.20346653]
[1727485276912,1.7086,2697.8,2697.7,2.20346216]
[1727485277220,1.7086,2697.8,2697.7,2.20347224]
[1727485278123,1.7086,2697.8,2697.7,1.23286332]
[1727485278315,1.7086,2697.8,2697.7,2.20375808]
[1727485279325,1.7086,2697.8,2697.7,0.97089476]
[1727485279519,1.7086,2697.8,2697.7,2.20391157]
[1727485279714,1.7086,2697.8,2697.7,0.97089476]
[1727485279920,1.7086,2697.8,2697.7,2.20390951]
[1727485280225,1.7086,2697.8,2697.7,0.97089476]
[1727485280428,1.7086,2697.8,2697.7,2.57453248]
[1727485280616,1.7086,2697.8,2697.7,1.23304772]
[1727485280815,3.16243387,2697.8,2697.6,0.76789]
[1727485281817,1.7086,2697.8,2697.6,0.76789]
[1727485282219,3.16243387,2697.8,2697.6,0.76789]
[1727485282918,3.16243387,2697.8,2697.7,0.37059]
[1727485283125,2.79383387,2697.8,2697.7,0.37059]
[1727485283321,1.45383387,2697.9,2697.7,0.37059]
[1727485283523,1.45383387,2697.8,2697.7,0.37059]
[1727485285021,1.45383387,2698.0,2697.7,8.2542]
[1727485285218,1.45383387,2698.2,2698.1,0.37053]
[1727485285818,1.45383387,2698.3,2698.1,0.37053]
[1727485286018,1.45383387,2698.3,2698.2,0.37052]
[1727485286328,1.45383387,2698.4,2698.3,0.37051]
[1727485286525,1.45383387,2698.5,2698.4,0.37049]
[1727485286728,1.45379781,2698.6,2698.3,4.5478]
[1727485287027,1.45379781,2698.6,2698.4,0.37048]
[1727485287230,1.45379781,2698.6,2698.3,0.3705]
[1727485287825,1.45379781,2698.6,2698.5,0.97100241]
[1727485287826,1.71046,2698.6,2698.5,0.97100241]
[1727485288032,1.71047,2698.6,2698.5,0.97100241]
[1727485288233,1.71047,2698.6,2698.4,1.45595093]
[1727485288234,0.37048,2698.5,2698.4,0.97100241]
[1727485288422,1.71048,2698.5,2698.3,0.97100241]
[1727485288624,0.3703,2698.4,2698.3,0.97100241]
[1727485289124,0.74079,2698.4,2698.3,0.97100241]
[1727485289324,0.3703,2698.4,2698.3,0.97100241]
[1727485290242,0.74079,2698.4,2698.3,0.97100241]
[1727485290438,1.7103,2698.4,2698.2,0.97100241]
[1727485290633,0.7753,2698.3,2698.2,0.97100241]
[1727485290837,1.14581,2698.3,2698.2,0.97029715]
[1727485291539,0.7753,2698.3,2698.2,0.97029715]
[1727485293345,1.14581,2698.3,2698.2,0.97029715]
[1727485293744,1.14581,2698.3,2698.1,0.97029715]
[1727485294542,0.37052,2698.2,2698.1,0.97029715]
[1727485294746,1.71052,2698.2,2698.1,0.97029715]
[1727485294948,1.71053,2698.2,2698.0,0.97029715]
[1727485295145,0.76223,2698.1,2698.0,0.97029715]
[1727485295347,0.3917,2698.1,2698.0,0.97029715]
[1727485295939,1.84549781,2698.1,2697.8,0.74097]
[1727485296549,1.84549781,2698.1,2697.9,0.37056]
[1727485297957,1.84549781,2698.1,2698.0,0.37055]
[1727485298453,1.84549781,2698.1,2697.9,0.37055]
[1727485298642,1.45379781,2698.1,2698.0,0.37055]
[1727485299252,1.45379781,2698.1,2697.9,0.37055]
[1727485300255,1.45379781,2698.1,2698.0,0.3813]
[1727485300557,1.45379781,2698.2,2698.0,0.75185]
[1727485301155,1.45379781,2698.1,2698.0,0.75185]
[1727485301455,1.45379781,2698.2,2698.0,0.75185]
[1727485302966,1.55011,2698.3,2698.1,0.97029715]
[1727485305955,0.37052,2698.2,2698.1,0.97029715]
[1727485306856,1.55011,2698.3,2698.1,0.97029715]
[1727485307155,0.37052,2698.2,2698.1,0.97029715]
[1727485307654,1.55011,2698.3,2698.1,2.20282447]
[1727485307954,0.37052,2698.2,2698.1,0.97029715]
[1727485308457,0.37052,2698.2,2698.1,2.20286065]
[1727485308652,0.37052,2698.2,2698.1,0.97029715]
[1727485308849,0.37052,2698.2,2698.1,2.20285107]
[1727485309449,0.37052,2698.2,2698.1,0.97029715]
[1727485309754,1.55011,2698.3,2698.1,0.97029715]
[1727485310150,0.37052,2698.2,2698.1,0.97029715]
[1727485310956,0.37052,2698.2,2698.0,1.83725093]
[1727485310957,0.37052,2698.2,2698.0,0.3813]
[1727485311151,1.93872255,2698.1,2698.0,0.3813]
[1727485312556,2.30925255,2698.1,2698.0,0.3813]
[1727485312751,0.37053,2698.1,2698.0,0.3813]
[1727485312954,4.13763188,2698.2,2698.0,0.3813]
[1727485315353,2.42710188,2698.1,2698.0,0.3813]
[1727485315554,4.13763188,2698.2,2698.0,0.3813]
[1727485315754,2.42710188,2698.1,2698.0,0.3813]
[1727485316055,1.71053,2698.2,2698.0,0.3813]
[1727485316056,4.13763188,2698.2,2698.0,0.3813]
[1727485316259,2.42710188,2698.1,2698.0,0.3813]
[1727485316459,4.13763188,2698.2,2698.0,0.3813]
[1727485316962,2.42710188,2698.1,2698.0,0.3813]
[1727485318062,1.71053,2698.2,2698.0,2.5846626]
[1727485318260,1.71053,2698.2,2698.0,1.35159715]
[1727485318469,0.37053,2698.1,2698.0,1.35159715]
[1727485318667,0.37053,2698.1,2698.0,1.35239437]
[1727485319965,0.37053,2698.1,2698.0,0.97109437]
[1727485320157,7.28473,2698.1,2698.0,0.97109437]
[1727485320357,7.28473,2698.1,2697.9,0.97109437]
[1727485320358,0.37055,2698.0,2697.9,0.97109437]
[1727485320663,2.08195,2698.0,2697.9,0.97109437]
[1727485321565,1.7114,2698.0,2697.9,0.97109437]
[1727485322068,2.08195,2698.0,2697.9,2.20460674]
[1727485322254,1.7114,2698.0,2697.9,2.20466738]
[1727485322868,2.08195,2698.0,2697.9,0.97125538]
[1727485325964,1.7114,2698.0,2697.9,1.23367618]
[1727485326172,1.7114,2698.0,2697.9,0.3818]
[1727485327077,2.08195,2698.0,2697.9,0.3818]
[1727485327673,1.7114,2698.0,2697.9,0.3818]
[1727485329664,6.97490188,2698.1,2697.9,0.75236]
[1727485329865,1.93902,2698.0,2697.9,0.3818]
[1727485330065,1.93902,2698.0,2697.9,0.7512]
[1727485333269,4.91834,2698.1,2697.9,3.44106702]
[1727485333475,4.91834,2698.1,2698.0,2.20572202]
[1727485333869,4.91834,2698.1,2698.0,1.23391609]
[1727485334073,1.71054,2698.1,2698.0,2.68986702]
[1727485335673,1.71054,2698.1,2698.0,1.23391609]
[1727485336078,1.71054,2698.1,2698.0,2.68986702]
[1727485338284,1.71054,2698.1,2698.0,2.20610727]
[1727485338285,3.16507596,2698.1,2698.0,2.20610727]
[1727485338476,3.16507596,2698.1,2698.0,1.23391609]
[1727485338676,1.34,2698.1,2698.0,2.68986702]
[1727485339072,1.71053,2698.1,2698.0,2.68986702]
[1727485339381,3.16506596,2698.1,2698.0,2.68986702]
[1727485339875,1.45453596,2698.1,2698.0,3.06041702]
[1727485340079,5.03285596,2698.2,2698.0,1.98211609]
[1727485340278,4.66233596,2698.2,2698.1,2.69227032]
[1727485341182,3.2078,2698.2,2698.1,0.97226008]
[1727485341979,4.66360603,2698.2,2698.1,1.34279008]
[1727485342185,4.66360603,2698.2,2698.1,2.57754468]
[1727485342586,4.66360603,2698.2,2698.1,2.20701468]
[1727485343080,1.45580603,2698.2,2698.1,2.20701468]
[1727485343786,1.45580603,2698.2,2698.1,0.97226008]
[1727485343978,1.82632603,2698.2,2698.1,0.97226008]
[1727485344286,1.45580603,2698.2,2698.1,2.20701114]
[1727485344691,3.16632603,2698.2,2698.1,0.97226008]
[1727485344893,1.71052,2698.2,2698.1,0.97226008]
[1727485348183,1.71052,2698.2,2698.0,0.7482]
[1727485350781,1.71052,2698.2,2698.0,1.11875]
[1727485351291,1.71052,2698.2,2698.0,0.7482]
[1727485353481,0.37053,2698.1,2698.0,0.7482]
[1727485353981,0.37053,2698.1,2698.0,0.3744]
[1727485354378,0.37055,2698.0,2697.9,0.3818]
[1727485354575,0.73735,2698.0,2697.9,0.3818]
[1727485355681,0.3668,2698.0,2697.9,0.3818]
[1727485356178,0.3668,2698.0,2697.9,4.08728709]
[1727485356381,2.07735,2698.0,2697.9,6.03249994]
[1727485356583,2.07735,2698.0,2697.9,3.56217521]
[1727485356987,2.07735,2698.0,2697.9,3.18037521]
[1727485357284,2.07735,2698.0,2697.7,0.97248355]
[1727485357285,18.73941645,2698.0,2697.7,0.97248355]
[1727485357488,18.73941645,2698.0,2697.6,0.97248355]
[1727485357489,0.37059,2697.7,2697.6,0.97248355]
[1727485357680,3.57839,2697.7,2697.6,0.97248355]
[1727485357885,7.66459,2697.7,2697.6,0.97248355]
[1727485358291,0.3706,2697.6,2697.5,0.97248355]
[1727485358493,3.56145881,2697.6,2697.5,0.97248355]
[1727485359288,2.1064,2697.6,2697.5,0.97248355]
[1727485360384,0.3958,2697.6,2697.5,0.97248355]
[1727485360687,3.2078,2697.7,2697.5,0.97248355]
[1727485360902,3.2078,2697.7,2697.6,0.3677]
[1727485361080,3.2078,2697.7,2697.6,1.34018355]
[1727485361286,3.2078,2697.7,2697.6,0.3677]
[1727485362184,3.2078,2697.7,2697.6,1.34018355]
[1727485362484,3.2078,2697.7,2697.6,0.7383]
[1727485362797,1.34,2697.8,2697.6,1.71078355]
[1727485362998,1.34,2697.8,2697.7,0.97145593]
[1727485363297,1.34,2697.8,2697.7,1.37205093]
[1727485364486,1.71057,2697.8,2697.7,1.37205093]
[1727485365597,1.34,2697.8,2697.7,1.37205093]
[1727485366193,4.9492,2698.0,2697.7,0.4006]
[1727485366392,4.9492,2698.0,2697.8,0.97138888]
[1727485366586,4.9492,2698.0,2697.9,1.33838888]
[1727485366587,4.5478,2698.0,2697.9,1.33838888]
[1727485366791,4.91835,2698.0,2697.9,1.33838888]
[1727485366999,4.91835,2698.0,2697.9,0.367]
[1727485367199,4.91835,2698.0,2697.8,0.97138888]
[1727485367499,1.34,2697.9,2697.8,0.97138888]
[1727485369596,1.34,2697.9,2697.7,2.23019492]
[1727485369798,1.34,2697.9,2697.8,1.45900492]
[1727485370001,1.34,2697.9,2697.8,0.37057]
[1727485370386,3.6143,2698.1,2697.7,1.85960492]
[1727485370387,3.28072019,2698.0,2697.9,0.37056]
[1727485370589,3.28072019,2698.0,2697.7,0.4006]
[1727485370793,1.45412306,2697.9,2697.8,0.37057]
[1727485376300,1.45412306,2697.9,2697.7,0.77118]
[1727485376501,1.45412306,2697.8,2697.7,0.77118]
[1727485377991,1.45412306,2697.8,2697.7,0.4006]
[1727485378399,0.37057,2697.8,2697.7,3.09061872]
[1727485379301,0.76277,2697.8,2697.7,3.09061872]
[1727485379706,1.13397,2697.8,2697.7,3.09061872]
[1727485380501,1.13397,2697.8,2697.7,1.6316138]
[1727485380801,1.13397,2697.8,2697.7,2.60298668]
[1727485381004,0.7634,2697.8,2697.7,2.60298668]
[1727485381999,1.71057,2697.9,2697.7,2.97357668]
[1727485382000,1.34,2697.9,2697.7,2.97357668]
[1727485382206,1.34,2697.9,2697.8,0.97137288]
[1727485382602,1.71056,2697.9,2697.8,0.97137288]
[1727485385401,3.65128019,2697.9,2697.7,0.4006]
[1727485385609,2.21802044,2697.8,2697.7,0.4006]
[1727485385909,2.21802044,2697.8,2697.5,0.367]
[1727485385910,0.37059,2697.7,2697.5,0.367]
[1727485386111,0.3706,2697.6,2697.5,0.367]
[1727485386314,3.91850815,2697.7,2697.5,0.367]
[1727485386608,3.91850815,2697.7,2697.4,1.71369288]
[1727485386609,1.82430815,2697.6,2697.4,0.3717]
[1727485386809,2.79370815,2697.5,2697.4,0.3717]
[1727485387003,1.45370815,2697.5,2697.4,0.74233]
[1727485387206,1.45370815,2697.6,2697.4,0.74233]
[1727485388303,1.82430815,2697.6,2697.4,0.3717]
[1727485388504,1.45370815,2697.6,2697.4,0.3717]
[1727485388705,1.45370815,2697.5,2697.4,0.3717]
[1727485388907,1.45370815,2697.5,2697.4,0.74233]
[1727485389216,1.45370815,2697.6,2697.4,0.74233]
[1727485390712,1.45370815,2697.5,2697.4,0.74233]
[1727485391306,1.45370815,2697.6,2697.4,0.74233]
[1727485392302,1.45370815,2697.5,2697.4,0.74233]
[1727485392505,1.82350815,2697.5,2697.4,0.74233]
[1727485393311,1.82350815,2697.5,2697.4,0.37063]
[1727485393513,1.7098,2697.5,2697.4,3.06056818]
[1727485394011,1.7098,2697.5,2697.4,1.60156326]
[1727485394210,1.7098,2697.5,2697.4,2.57285135]
[1727485394413,1.7098,2697.5,2697.4,2.57287831]
[1727485394615,1.7098,2697.5,2697.4,1.60156326]
[1727485394817,1.7098,2697.5,2697.4,2.57287629]
[1727485395008,1.7098,2697.5,2697.4,2.57285751]
[1727485395818,1.7098,2697.5,2697.4,1.34193046]
[1727485396020,1.7098,2697.5,2697.4,1.60156778]
[1727485396219,1.7098,2697.5,2697.4,2.5728816]
[1727485396415,1.7098,2697.5,2697.4,1.60156778]
[1727485396917,1.7098,2697.5,2697.4,2.57289399]
[1727485397117,1.7098,2697.5,2697.4,3.0605727]
[1727485397414,1.7098,2697.5,2697.4,1.60156778]
[1727485397620,1.7098,2697.5,2697.4,2.57292139]
[1727485398014,1.7098,2697.5,2697.4,1.60156778]
[1727485398434,1.7098,2697.5,2697.4,2.5729534]
[1727485398722,1.7098,2697.5,2697.4,2.57306443]
[1727485399219,1.7098,2697.5,2697.4,2.57306534]
[1727485399414,1.7098,2697.5,2697.4,1.60166624]
[1727485399817,1.7098,2697.5,2697.4,2.57310246]
[1727485400017,1.7098,2697.5,2697.4,3.06067116]
[1727485400419,3.16350815,2697.5,2697.4,0.37063]
[1727485400618,1.45370815,2697.5,2697.4,0.37063]
[1727485400925,1.45370815,2697.6,2697.5,0.37062]
[1727485401112,1.45370815,2697.6,2697.5,1.10672]
[1727485402328,1.45351689,2697.6,2697.5,0.7361]
[1727485402714,1.45351689,2697.7,2697.5,0.7361]
[1727485403020,1.45351689,2697.7,2697.5,1.10671]
[1727485404129,1.45351689,2697.7,2697.6,0.3706]
[1727485404420,1.45351689,2697.8,2697.7,0.37059]
[1727485404819,1.45351689,2697.8,2697.6,0.3788]
[1727485405120,1.45351689,2697.8,2697.7,0.37059]
[1727485406023,1.45351689,2697.8,2697.6,1.72085203]
[1727485406224,1.45351689,2697.8,2697.7,0.37059]
[1727485406725,1.45351689,2697.8,2697.6,1.72084203]
[1727485406916,1.45351689,2697.8,2697.6,0.74939]
[1727485407117,1.45351689,2697.8,2697.6,1.72084203]
[1727485407930,1.45351689,2697.8,2697.7,0.37059]
[1727485408127,4.40432019,2698.0,2697.6,1.35025203]
[1727485408128,1.45351689,2697.9,2697.6,1.35025203]
[1727485408328,1.45351689,2697.8,2697.7,0.37058]
[1727485408517,4.77487019,2698.0,2697.7,1.60194455]
[1727485408518,2.83415,2698.0,2697.7,1.60194455]
[1727485408724,2.83415,2698.0,2697.9,0.97161952]
[1727485410128,2.4636,2698.0,2697.9,0.97161952]
[1727485410530,2.83415,2698.0,2697.9,0.97161952]
[1727485411234,2.4636,2698.0,2697.9,0.97161952]
[1727485411533,2.83415,2698.0,2697.9,0.97161952]
[1727485415133,2.4636,2698.0,2697.9,2.20285361]
[1727485415636,2.4636,2698.0,2697.8,0.37056]
[1727485415637,4.40432019,2698.0,2697.8,0.37056]
[1727485415937,1.45312027,2697.9,2697.7,0.37058]
[1727485418035,1.45312027,2697.9,2697.6,1.35041952]
[1727485418036,1.45312027,2697.9,2697.8,0.37057]
[1727485418740,4.77487019,2698.0,2697.8,0.37057]
[1727485418941,1.45312751,2697.9,2697.7,0.37058]
[1727485419339,1.45312751,2697.8,2697.7,0.37058]
[1727485419532,1.45312751,2697.8,2697.6,0.3788]
[1727485419840,1.45312751,2697.8,2697.7,0.37059]
[1727485423636,0.37056,2697.9,2697.7,1.60196697]
[1727485423944,0.37056,2697.9,2697.8,2.68882864]
[1727485424942,2.83416,2698.0,2697.8,3.05939864]
[1727485425144,2.4636,2698.0,2697.9,1.23134557]
[1727485425640,1.49415,2698.0,2697.9,1.23134557]
[1727485425946,1.49415,2698.0,2697.9,2.20293638]
[1727485426143,1.49415,2698.0,2697.9,2.59793469]
[1727485426346,1.1236,2698.0,2697.9,1.62634557]
[1727485426644,1.1236,2698.0,2697.9,2.59794288]
[1727485426841,1.49415,2698.0,2697.9,2.59794288]
[1727485427038,1.49415,2698.0,2697.9,1.62634557]
[1727485427449,1.1236,2698.0,2697.9,1.62634557]
[1727485427642,1.1236,2698.0,2697.9,2.59790718]
[1727485428056,1.49415,2698.0,2697.9,2.59790718]
[1727485428349,1.49415,2698.0,2697.9,2.59783489]
[1727485430355,1.49415,2698.0,2697.9,1.62627328]
[1727485430541,1.49415,2698.0,2697.9,1.36648722]
[1727485431843,1.1236,2698.0,2697.9,2.59769125]
[1727485432048,1.49415,2698.0,2697.9,2.59768178]
[1727485432349,1.49415,2698.0,2697.9,1.3664686]
[1727485432547,1.1236,2698.0,2697.9,2.59765449]
[1727485433248,1.49415,2698.0,2697.9,0.395]
[1727485433449,1.49415,2698.0,2697.9,1.62619092]
[1727485433648,1.1236,2698.0,2697.9,1.62619092]
[1727485435347,1.49415,2698.0,2697.9,1.62619092]
[1727485435550,1.49415,2698.0,2697.9,2.5977024]
[1727485436044,1.49415,2698.0,2697.9,2.59771985]
[1727485437250,1.49415,2698.0,2697.9,1.62619092]
[1727485437650,1.49415,2698.0,2697.9,2.59778441]
[1727485437847,1.49415,2698.0,2697.9,2.59779417]
[1727485438047,1.49415,2698.0,2697.9,1.62619092]
[1727485438247,1.49415,2698.0,2697.9,2.59800819]
[1727485438649,3.43487019,2698.0,2697.9,0.395]
[1727485440353,3.06432019,2698.0,2697.9,0.395]
[1727485441252,3.43487019,2698.0,2697.9,0.395]
[1727485441957,3.43281923,2698.0,2697.9,0.395]
[1727485442458,3.43306373,2698.0,2697.9,0.395]
[1727485442650,3.43308455,2698.0,2697.9,0.395]
[1727485442851,3.06253455,2698.0,2697.9,0.395]
[1727485443252,1.1236,2698.0,2697.9,0.395]
[1727485443549,3.06272382,2698.0,2697.9,0.395]
[1727485443745,3.43327382,2698.0,2697.9,0.395]
[1727485443947,3.43326435,2698.0,2697.9,0.395]
[1727485444147,1.49415,2698.0,2697.9,0.395]
[1727485444356,3.43351432,2698.0,2697.9,0.395]
[1727485444864,3.06296432,2698.0,2697.9,0.395]
[1727485445063,3.06297667,2698.0,2697.9,0.395]
[1727485445357,0.37059,2697.8,2697.6,0.97160691]
[1727485445557,0.3866,2697.7,2697.6,0.97160691]
[1727485445756,0.3866,2697.7,2697.6,3.69711937]
[1727485445957,0.3866,2697.7,2697.6,5.64197793]
[1727485446350,0.3866,2697.7,2697.6,3.69711937]
[1727485447559,0.3866,2697.7,2697.6,4.06771937]
[1727485447758,0.3866,2697.7,2697.6,3.69711937]
[1727485447958,0.3866,2697.7,2697.6,4.06771937]
[1727485448255,0.3866,2697.7,2697.6,3.69711937]
[1727485449263,0.3866,2697.7,2697.6,6.12936043]
[1727485449462,0.3866,2697.7,2697.6,3.69711937]
[1727485450149,0.3866,2697.7,2697.6,6.12936043]
[1727485450353,0.3866,2697.7,2697.6,6.49996043]
[1727485450749,1.45465186,2697.9,2697.6,9.83656043]
[1727485450950,3.94891186,2698.0,2697.8,1.94580691]
[1727485451162,3.94891186,2698.0,2697.9,1.23237312]
[1727485451362,3.94891186,2698.0,2697.8,2.34380691]
[1727485451560,3.94891186,2698.0,2697.9,3.17879841]
[1727485451954,2.49426,2698.0,2697.9,3.17879841]
[1727485452257,3.94891186,2698.0,2697.9,3.17879841]
[1727485452456,2.1237,2698.0,2697.9,3.17879841]
[1727485452860,2.1237,2698.0,2697.9,5.64469984]
[1727485453065,2.1237,2698.0,2697.9,3.17879841]
[1727485453463,3.57835186,2698.0,2697.9,3.17879841]
[1727485454354,3.94890186,2698.0,2697.9,1.2329915]
[1727485454556,2.49425,2698.0,2697.9,3.17879841]
[1727485455152,3.94890186,2698.0,2697.9,3.17879841]
[1727485455569,2.1237,2698.0,2697.9,3.17879841]
[1727485455762,3.57835186,2698.0,2697.9,3.17879841]
[1727485455968,2.1237,2698.0,2697.9,3.17879841]
[1727485456265,2.1237,2698.0,2697.9,1.94580691]
[1727485456565,2.1237,2698.0,2697.9,3.17874849]
[1727485456761,2.1237,2698.0,2697.9,3.54930849]
[1727485456957,2.1237,2698.0,2697.9,3.17874849]
[1727485459561,3.57835186,2698.0,2697.9,3.17874849]
[1727485459759,1.45465186,2698.0,2697.9,3.17874849]
[1727485459960,1.45465186,2698.2,2698.1,0.37053]
[1727485460165,1.45465186,2698.3,2698.1,5.64400356]
[1727485460368,1.82516186,2698.3,2698.2,2.6920473]
[1727485460579,1.71051,2698.3,2698.2,2.6920473]
[1727485460768,0.37054,2698.1,2697.9,1.36226858]
[1727485460970,2.34119144,2698.0,2697.9,1.36226858]
[1727485461977,3.68102021,2698.0,2697.8,1.74146858]
[1727485462171,1.94122021,2697.9,2697.8,1.74139968]
[1727485463359,2.11035,2698.0,2697.8,2.97403198]
[1727485463360,4.05157021,2698.0,2697.8,2.97403198]
[1727485463566,0.37056,2697.9,2697.8,0.398]
[1727485463764,0.37056,2697.9,2697.8,2.20517483]
[1727485463972,0.37056,2697.9,2697.8,2.2051538]
[1727485464169,0.37056,2697.9,2697.8,2.20515873]
[1727485464675,0.37056,2697.9,2697.8,1.23259201]
[1727485464878,1.71056,2697.9,2697.8,0.9725418]
[1727485465170,3.65178021,2697.9,2697.8,0.9725418]
[1727485465376,3.65178021,2697.9,2697.7,0.9725418]
[1727485466073,3.65179021,2697.9,2697.7,0.9725418]
[1727485467067,3.65179021,2697.9,2697.7,1.3431318]
[1727485467870,1.71057,2697.9,2697.8,5.64337546]
[1727485468569,0.3998,2698.0,2697.8,4.06850558]
[1727485468570,1.7398,2698.0,2697.8,4.06850558]
[1727485468773,2.11035,2698.0,2697.9,3.17784816]
[1727485468982,2.11035,2698.0,2697.9,1.23264519]
[1727485469879,3.56617097,2698.0,2697.9,1.23264519]
[1727485471175,3.56617097,2698.0,2697.9,1.23266885]
[1727485473376,3.56617097,2698.0,2697.9,2.69161537]
[1727485474178,3.56619075,2698.0,2697.9,2.69161537]
[1727485476081,4.5370893,2698.0,2697.7,1.34322444]
[1727485476281,1.94120085,2697.8,2697.7,1.34322444]
[1727485478279,2.31177085,2697.8,2697.7,0.97264444]
[1727485478484,3.28120085,2697.8,2697.7,1.34323444]
[1727485479794,3.28120085,2697.8,2697.7,0.37059]
[1727485480081,3.28120085,2697.8,2697.7,1.34323444]
[1727485480282,3.28120085,2697.8,2697.7,0.37059]
[1727485480491,3.28120085,2697.8,2697.7,1.34323444]
[1727485481289,3.28120085,2697.8,2697.7,0.37059]
[1727485481681,3.28120085,2697.8,2697.6,2.14703444]
[1727485482282,3.28120085,2697.8,2697.7,0.37059]
[1727485482590,3.65177085,2697.8,2697.6,2.14704444]
[1727485482888,3.28120085,2697.8,2697.7,0.37059]
[1727485483094,1.34,2697.8,2697.7,3.5483468]
[1727485485993,1.34,2697.8,2697.7,3.17764519]
[1727485486494,1.34,2697.8,2697.7,3.54823519]
[1727485486990,1.34,2697.8,2697.7,3.17764519]
[1727485487383,1.71057,2697.8,2697.7,3.17764519]
[1727485487793,1.71057,2697.8,2697.7,1.23244222]
[1727485488389,1.34,2697.8,2697.7,1.23244222]
[1727485489888,1.34,2697.8,2697.7,3.17764519]
[1727485490083,1.34,2697.8,2697.7,1.23244222]
[1727485490284,1.71057,2697.8,2697.7,3.17764519]
[1727485490988,1.71057,2697.8,2697.7,3.17761956]
[1727485491296,3.65177085,2697.8,2697.6,2.14684135]
[1727485491791,1.94120085,2697.7,2697.6,1.1744]
[1727485492291,1.94120085,2697.7,2697.6,2.14684135]
[1727485492694,1.94062243,2697.7,2697.6,1.77624135]
[1727485493089,1.94062243,2697.7,2697.6,2.14683135]
[1727485495094,1.94062243,2697.7,2697.6,1.17439]
[1727485497690,1.94062243,2697.7,2697.6,2.14683135]
[1727485497893,1.94062243,2697.7,2697.6,1.17439]
[1727485498094,1.71058,2697.8,2697.6,6.81683732]
[1727485498289,1.71058,2697.8,2697.7,1.23241478]
[1727485498795,1.71058,2697.8,2697.7,3.17761775]
[1727485499793,1.71058,2697.8,2697.7,5.64233882]
[1727485500003,1.71058,2697.8,2697.7,5.64233758]
[1727485500192,1.71058,2697.8,2697.7,3.17761775]
[1727485500392,1.71058,2697.8,2697.7,1.23241478]
[1727485500596,1.71058,2697.8,2697.7,1.23240608]
[1727485501798,1.34,2697.8,2697.7,1.23240608]
[1727485502003,1.71057,2697.8,2697.7,1.23240608]
[1727485502202,1.71057,2697.8,2697.7,3.17760905]
[1727485502497,1.71057,2697.8,2697.7,1.23240608]
[1727485503195,1.34,2697.8,2697.7,1.23240608]
[1727485503401,1.45540114,2697.9,2697.7,1.23240608]
[1727485503601,1.82596114,2697.9,2697.8,2.69106365]
[1727485504101,0.37056,2697.9,2697.8,2.69106365]
[1727485504294,1.82596114,2697.9,2697.8,2.69106515]
[1727485504892,6.87236114,2697.9,2697.8,2.69106515]
[1727485505097,13.91343243,2697.9,2697.7,0.97249207]
[1727485505294,3.65119243,2697.8,2697.7,0.97249207]
[1727485505497,0.37059,2697.7,2697.6,1.37799207]
[1727485505698,2.22161604,2697.7,2697.6,2.61032719]
[1727485505999,2.22161604,2697.7,2697.6,1.63783512]
[1727485506296,2.8216393,2697.7,2697.6,0.7761]
[1727485506501,2.8216393,2697.7,2697.6,0.4055]
[1727485506502,2.4267393,2697.7,2697.6,0.4055]
[1727485506705,0.37059,2697.7,2697.6,0.4055]
[1727485506910,2.7973293,2697.7,2697.6,0.4055]
[1727485508706,7.3451293,2697.7,2697.6,0.4055]
[1727485508906,4.91839,2697.7,2697.6,0.4055]
[1727485509111,7.34570386,2697.7,2697.6,0.4055]
[1727485510795,7.34570386,2697.7,2697.3,0.395]
[1727485510796,8.255,2697.7,2697.3,0.395]
[1727485510995,1.94191545,2697.4,2697.3,0.7677]
[1727485511900,2.31253545,2697.5,2697.3,0.7677]
[1727485512505,0.37063,2697.4,2697.3,0.7677]
[1727485512802,2.31254545,2697.4,2697.3,0.7677]
[1727485513002,1.94191545,2697.4,2697.3,0.7677]
[1727485513204,3.93714494,2697.6,2697.3,3.94505236]
[1727485513394,3.93714494,2697.6,2697.5,0.97219594]
[1727485513907,8.01494494,2697.6,2697.5,0.97219594]
[1727485514406,6.5588,2697.6,2697.5,0.97219594]
[1727485514598,6.5588,2697.6,2697.5,2.20419228]
[1727485514794,6.5588,2697.6,2697.5,0.97219594]
[1727485515202,8.01494494,2697.6,2697.5,0.97219594]
[1727485515407,6.5588,2697.6,2697.5,0.97219594]
[1727485516103,8.01494494,2697.6,2697.5,0.97219594]
[1727485517002,2.8516,2697.6,2697.5,0.97219594]
[1727485521705,0.37062,2697.5,2697.3,2.22611174]
[1727485522009,0.37062,2697.5,2697.4,1.23166873]
[1727485523704,0.37062,2697.5,2697.3,2.22611174]
[1727485523903,0.37062,2697.5,2697.4,1.23160969]
[1727485524610,0.37062,2697.5,2697.4,2.69002143]
[1727485525308,0.37062,2697.5,2697.4,1.23160969]
[1727485525502,0.37062,2697.5,2697.4,2.20342991]
[1727485525705,0.37062,2697.5,2697.4,1.23160969]
[1727485525904,0.37062,2697.5,2697.4,2.69002143]
[1727485526110,0.37062,2697.5,2697.4,2.20342245]
[1727485526316,0.37062,2697.5,2697.4,1.23160969]
[1727485526518,0.37062,2697.5,2697.4,2.20342447]
[1727485527714,0.37062,2697.5,2697.4,0.97181478]